[Event "Titled Tuesday Blitz February 07 Late 2023"]
[White "Dudzinski, Pawel"]
[Black "Kavutskiy, Konstantin"]
[WhiteFideId "1117890"]
[BlackFideId "2026384"]
[WhiteElo "2186"]
[BlackElo "2414"]
[Result "1-0"]
[Round "11"]
[TimeControl "180+2"]
[Date "2023.02.07"]
[WhiteClock "0:00:08"]
[BlackClock "0:00:15"]

1. e4 {[%clk 0:03:00]}  c5 {[%clk 0:02:57]} 2. c4 {[%clk 0:03:00]}  Nc6 {[%clk 0:02:51]} 3. Nc3 {[%clk 0:03:00]}  e6 {[%clk 0:02:50]} 4. g3 {[%clk 0:03:01]}  g6 {[%clk 0:02:48]} 5. Bg2 {[%clk 0:03:01]}  Bg7 {[%clk 0:02:48]} 6. Nge2 {[%clk 0:03:01]}  Nge7 {[%clk 0:02:48]} 7. Rb1 {[%clk 0:03:02]}  d6 {[%clk 0:02:47]} 8. a3 {[%clk 0:03:02]}  O-O {[%clk 0:02:47]} 9. b4 {[%clk 0:03:02]}  b6 {[%clk 0:02:44]} 10. d3 {[%clk 0:03:02]}  Bb7 {[%clk 0:02:43]} 11. O-O {[%clk 0:03:01]}  Qd7 {[%clk 0:02:42]} 12. Be3 {[%clk 0:02:59]}  Nd4 {[%clk 0:02:41]} 13. Qd2 {[%clk 0:02:58]}  Nec6 {[%clk 0:02:39]} 14. b5 {[%clk 0:02:54]}  Na5 {[%clk 0:02:32]} 15. Bxd4 {[%clk 0:02:34]}  cxd4 {[%clk 0:02:31]} 16. Na2 {[%clk 0:02:35]}  d5 {[%clk 0:02:29]} 17. exd5 {[%clk 0:02:28]}  exd5 {[%clk 0:02:29]} 18. c5 {[%clk 0:02:29]}  Qf5 {[%clk 0:02:04]} 19. c6 {[%clk 0:02:24]}  Bc8 {[%clk 0:02:04]} 20. Nb4 {[%clk 0:02:22]}  Rd8 {[%clk 0:01:59]} 21. Rfe1 {[%clk 0:02:03]}  h5 {[%clk 0:01:59]} 22. Qf4 {[%clk 0:01:46]}  Kh7 {[%clk 0:01:50]} 23. Qxf5 {[%clk 0:01:44]}  Bxf5 {[%clk 0:01:50]} 24. Nf4 {[%clk 0:01:43]}  Bh6 {[%clk 0:01:44]} 25. Nfxd5 {[%clk 0:01:38]}  Bd2 {[%clk 0:01:32]} 26. Re7 {[%clk 0:01:38]}  Kg7 {[%clk 0:01:31]} 27. Be4 {[%clk 0:01:28]}  Be6 {[%clk 0:01:26]} 28. Nc7 {[%clk 0:01:20]}  Kf6 {[%clk 0:01:19]} 29. Nxe6 {[%clk 0:00:18]}  fxe6 {[%clk 0:01:20]} 30. Rh7 {[%clk 0:00:13]}  Rf8 {[%clk 0:01:04]} 31. Kg2 {[%clk 0:00:11]}  Rf7 {[%clk 0:00:51]} 32. Rxf7+ {[%clk 0:00:11]}  Kxf7 {[%clk 0:00:52]} 33. f4 {[%clk 0:00:11]}  g5 {[%clk 0:00:49]} 34. fxg5 {[%clk 0:00:10]}  Bxg5 {[%clk 0:00:50]} 35. Rf1+ {[%clk 0:00:09]}  Kg7 {[%clk 0:00:50]} 36. Rb1 {[%clk 0:00:07]}  Be3 {[%clk 0:00:49]} 37. c7 {[%clk 0:00:04]}  Rc8 {[%clk 0:00:49]} 38. Na6 {[%clk 0:00:04]}  Kf6 {[%clk 0:00:41]} 39. Rf1+ {[%clk 0:00:03]}  Ke7 {[%clk 0:00:40]} 40. Rf3 {[%clk 0:00:03]}  Nb3 {[%clk 0:00:39]} 41. g4 {[%clk 0:00:03]}  hxg4 {[%clk 0:00:38]} 42. Rg3 {[%clk 0:00:04]}  Nc5 {[%clk 0:00:37]} 43. Rxg4 {[%clk 0:00:04]}  Nxa6 {[%clk 0:00:36]} 44. Rg7+ {[%clk 0:00:04]}  Kf6 {[%clk 0:00:36]} 45. Rg6+ {[%clk 0:00:04]}  Ke5 {[%clk 0:00:36]} 46. bxa6 {[%clk 0:00:04]}  Rxc7 {[%clk 0:00:37]} 47. Rg8 {[%clk 0:00:03]}  Rc2+ {[%clk 0:00:33]} 48. Kh3 {[%clk 0:00:04]}  Rc3 {[%clk 0:00:29]} 49. Ra8 {[%clk 0:00:04]}  Rxa3 {[%clk 0:00:28]} 50. Rxa7 {[%clk 0:00:04]}  b5 {[%clk 0:00:24]} 51. Rf7 {[%clk 0:00:05]}  b4 {[%clk 0:00:24]} 52. a7 {[%clk 0:00:05]}  b3 {[%clk 0:00:24]} 53. a8=Q {[%clk 0:00:05]}  Rxa8 {[%clk 0:00:24]} 54. Bxa8 {[%clk 0:00:06]}  b2 {[%clk 0:00:20]} 55. Rb7 {[%clk 0:00:06]}  Bc1 {[%clk 0:00:21]} 56. Rb3 {[%clk 0:00:06]}  Kf4 {[%clk 0:00:20]} 57. Be4 {[%clk 0:00:04]}  Kg5 {[%clk 0:00:18]} 58. Kg3 {[%clk 0:00:03]}  Bf4+ {[%clk 0:00:17]} 59. Kg2 {[%clk 0:00:04]}  Bc1 {[%clk 0:00:18]} 60. Kf3 {[%clk 0:00:04]}  Kh4 {[%clk 0:00:18]} 61. Bc6 {[%clk 0:00:03]}  Kh3 {[%clk 0:00:18]} 62. Bd7 {[%clk 0:00:03]}  Kxh2 {[%clk 0:00:18]} 63. Bxe6 {[%clk 0:00:04]}  Kg1 {[%clk 0:00:18]} 64. Ke2 {[%clk 0:00:03]}  Kg2 {[%clk 0:00:18]} 65. Rb5 {[%clk 0:00:04]}  Kg3 {[%clk 0:00:18]} 66. Ba2 {[%clk 0:00:05]}  Kf4 {[%clk 0:00:18]} 67. Bb1 {[%clk 0:00:05]}  Kg4 {[%clk 0:00:18]} 68. Kd1 {[%clk 0:00:06]}  Kf4 {[%clk 0:00:18]} 69. Kc2 {[%clk 0:00:07]}  Ke3 {[%clk 0:00:19]} 70. Rxb2 {[%clk 0:00:06]}  Bxb2 {[%clk 0:00:18]} 71. Kxb2 {[%clk 0:00:07]}  Kd2 {[%clk 0:00:18]} 72. Kb3 {[%clk 0:00:07]}  Kc1 {[%clk 0:00:15]} 73. Kc4 {[%clk 0:00:08]} 1-0


[Site "https://www.chess.com"]

[Event "Titled Tuesday Blitz February 07 Late 2023"]
[White "Fernandez Garcia, Gumersindo"]
[Black "Filgueira, Hernan"]
[WhiteFideId "24516740"]
[BlackFideId "101770"]
[WhiteElo "2160"]
[BlackElo "2283"]
[Result "0-1"]
[Round "11"]
[TimeControl "180+2"]
[Date "2023.02.07"]
[WhiteClock "0:00:10"]
[BlackClock "0:00:13"]

1. e4 {[%clk 0:03:00]}  e6 {[%clk 0:02:58]} 2. d4 {[%clk 0:02:58]}  d5 {[%clk 0:02:58]} 3. Bd3 {[%clk 0:02:58]}  a6 {[%clk 0:02:54]} 4. Ne2 {[%clk 0:02:47]}  dxe4 {[%clk 0:02:51]} 5. Bxe4 {[%clk 0:02:48]}  Nf6 {[%clk 0:02:52]} 6. Bf3 {[%clk 0:02:48]}  c5 {[%clk 0:02:51]} 7. O-O {[%clk 0:02:47]}  Nbd7 {[%clk 0:02:47]} 8. dxc5 {[%clk 0:02:42]}  Bxc5 {[%clk 0:02:45]} 9. a3 {[%clk 0:02:41]}  O-O {[%clk 0:02:34]} 10. b4 {[%clk 0:02:41]}  Be7 {[%clk 0:02:34]} 11. Bb2 {[%clk 0:02:42]}  Rb8 {[%clk 0:02:32]} 12. Nd2 {[%clk 0:02:40]}  b6 {[%clk 0:02:28]} 13. Nd4 {[%clk 0:02:35]}  Bb7 {[%clk 0:02:24]} 14. Nc6 {[%clk 0:02:35]}  Bxc6 {[%clk 0:02:24]} 15. Bxc6 {[%clk 0:02:36]}  Qc7 {[%clk 0:02:24]} 16. Bf3 {[%clk 0:02:36]}  Ne5 {[%clk 0:02:20]} 17. Re1 {[%clk 0:02:29]}  Bd6 {[%clk 0:02:14]} 18. g3 {[%clk 0:02:24]}  Rfd8 {[%clk 0:02:12]} 19. Qe2 {[%clk 0:02:23]}  Nxf3+ {[%clk 0:02:01]} 20. Nxf3 {[%clk 0:02:22]}  b5 {[%clk 0:01:56]} 21. Rac1 {[%clk 0:02:09]}  Rbc8 {[%clk 0:01:54]} 22. Red1 {[%clk 0:02:03]}  Nd5 {[%clk 0:01:52]} 23. Rd3 {[%clk 0:01:53]}  Qc4 {[%clk 0:01:40]} 24. Ng5 {[%clk 0:01:41]}  h6 {[%clk 0:01:09]} 25. Nxe6 {[%clk 0:01:35]}  Re8 {[%clk 0:01:09]} 26. Qh5 {[%clk 0:01:09]}  fxe6 {[%clk 0:01:06]} 27. Rd4 {[%clk 0:00:59]}  Qc7 {[%clk 0:00:59]} 28. Rg4 {[%clk 0:00:55]}  Bf8 {[%clk 0:00:46]} 29. Qxh6 {[%clk 0:00:51]}  Nc3 {[%clk 0:00:41]} 30. Qe3 {[%clk 0:00:37]}  e5 {[%clk 0:00:32]} 31. Re1 {[%clk 0:00:31]}  Nd5 {[%clk 0:00:28]} 32. Qg5 {[%clk 0:00:26]}  Qe7 {[%clk 0:00:20]} 33. Qd2 {[%clk 0:00:21]}  Qf7 {[%clk 0:00:17]} 34. Bxe5 {[%clk 0:00:19]}  Nb6 {[%clk 0:00:17]} 35. Qg5 {[%clk 0:00:17]}  Nc4 {[%clk 0:00:17]} 36. f4 {[%clk 0:00:15]}  Nxe5 {[%clk 0:00:16]} 37. fxe5 {[%clk 0:00:15]}  Rxc2 {[%clk 0:00:15]} 38. Qe3 {[%clk 0:00:13]}  Qa2 {[%clk 0:00:15]} 39. e6 {[%clk 0:00:10]}  Rg2+ {[%clk 0:00:14]} 40. Kf1 {[%clk 0:00:11]}  Rxh2 {[%clk 0:00:14]} 41. Rh4 {[%clk 0:00:10]}  Qg2# {[%clk 0:00:13]} 0-1


[Site "https://www.chess.com"]

[Event "Titled Tuesday Blitz February 07 Late 2023"]
[White "Sztokbant, Bernardo Vainzoff"]
[Black "Mikhalsky, Vladimir"]
[WhiteFideId "2115956"]
[BlackFideId "14144352"]
[WhiteElo "2213"]
[BlackElo "2219"]
[Result "0-1"]
[Round "11"]
[TimeControl "180+2"]
[Date "2023.02.07"]
[WhiteClock "0:00:03"]
[BlackClock "0:00:12"]

1. d4 {[%clk 0:03:00]}  Nf6 {[%clk 0:02:59]} 2. c4 {[%clk 0:03:00]}  g6 {[%clk 0:02:59]} 3. Nf3 {[%clk 0:03:01]}  Bg7 {[%clk 0:02:58]} 4. g3 {[%clk 0:03:02]}  O-O {[%clk 0:02:58]} 5. Bg2 {[%clk 0:03:02]}  d6 {[%clk 0:02:59]} 6. O-O {[%clk 0:03:03]}  Nbd7 {[%clk 0:02:59]} 7. Nc3 {[%clk 0:03:04]}  e5 {[%clk 0:03:00]} 8. dxe5 {[%clk 0:03:01]}  dxe5 {[%clk 0:03:00]} 9. Qc2 {[%clk 0:02:55]}  c6 {[%clk 0:02:59]} 10. Rd1 {[%clk 0:02:56]}  Qe7 {[%clk 0:02:59]} 11. Nd2 {[%clk 0:02:50]}  Nc5 {[%clk 0:02:54]} 12. Nde4 {[%clk 0:02:49]}  Bf5 {[%clk 0:02:49]} 13. Bg5 {[%clk 0:02:46]}  h6 {[%clk 0:02:32]} 14. Bxf6 {[%clk 0:02:46]}  Bxf6 {[%clk 0:02:32]} 15. Qd2 {[%clk 0:02:38]}  Bg7 {[%clk 0:02:25]} 16. Qd6 {[%clk 0:02:32]}  Qxd6 {[%clk 0:02:14]} 17. Nxd6 {[%clk 0:02:33]}  Bc8 {[%clk 0:02:11]} 18. Rd2 {[%clk 0:02:29]}  f5 {[%clk 0:01:59]} 19. Rad1 {[%clk 0:02:27]}  e4 {[%clk 0:01:59]} 20. Rc1 {[%clk 0:02:10]}  a5 {[%clk 0:01:58]} 21. Nd1 {[%clk 0:02:04]}  h5 {[%clk 0:01:43]} 22. Ne3 {[%clk 0:01:53]}  Be6 {[%clk 0:01:32]} 23. f4 {[%clk 0:01:51]}  Ra6 {[%clk 0:01:25]} 24. Rcd1 {[%clk 0:01:47]}  Rb6 {[%clk 0:01:24]} 25. b3 {[%clk 0:01:47]}  Ra8 {[%clk 0:01:02]} 26. Nc2 {[%clk 0:01:45]}  Bc3 {[%clk 0:00:55]} 27. Nd4 {[%clk 0:01:38]}  Bxd2 {[%clk 0:00:50]} 28. Rxd2 {[%clk 0:01:39]}  Bf7 {[%clk 0:00:50]} 29. Nc2 {[%clk 0:01:32]}  Rd8 {[%clk 0:00:43]} 30. Nxe4 {[%clk 0:01:32]}  Rxd2 {[%clk 0:00:40]} 31. Nxd2 {[%clk 0:01:33]}  Ra6 {[%clk 0:00:36]} 32. Nf3 {[%clk 0:01:28]}  Ne4 {[%clk 0:00:34]} 33. Ne5 {[%clk 0:01:18]}  a4 {[%clk 0:00:35]} 34. Bxe4 {[%clk 0:01:12]}  fxe4 {[%clk 0:00:34]} 35. b4 {[%clk 0:01:08]}  b5 {[%clk 0:00:33]} 36. c5 {[%clk 0:01:05]}  Bxa2 {[%clk 0:00:31]} 37. Na3 {[%clk 0:01:03]}  Bf7 {[%clk 0:00:30]} 38. Kf2 {[%clk 0:01:02]}  Be8 {[%clk 0:00:30]} 39. Ke3 {[%clk 0:01:02]}  Ra7 {[%clk 0:00:30]} 40. Kxe4 {[%clk 0:01:01]}  Re7 {[%clk 0:00:30]} 41. Kd4 {[%clk 0:00:59]}  Kg7 {[%clk 0:00:29]} 42. e4 {[%clk 0:00:59]}  Kf6 {[%clk 0:00:28]} 43. h3 {[%clk 0:00:57]}  g5 {[%clk 0:00:28]} 44. h4 {[%clk 0:00:53]}  gxf4 {[%clk 0:00:27]} 45. gxf4 {[%clk 0:00:54]}  Rc7 {[%clk 0:00:26]} 46. Nc2 {[%clk 0:00:52]}  Rc8 {[%clk 0:00:26]} 47. Kc3 {[%clk 0:00:51]}  Rd8 {[%clk 0:00:23]} 48. Nf3 {[%clk 0:00:43]}  Rd1 {[%clk 0:00:20]} 49. e5+ {[%clk 0:00:39]}  Ke7 {[%clk 0:00:19]} 50. f5 {[%clk 0:00:38]}  Rf1 {[%clk 0:00:19]} 51. Nfd4 {[%clk 0:00:36]}  Rf4 {[%clk 0:00:17]} 52. f6+ {[%clk 0:00:33]}  Kf7 {[%clk 0:00:17]} 53. Ne3 {[%clk 0:00:30]}  Rxh4 {[%clk 0:00:18]} 54. Ndf5 {[%clk 0:00:24]}  Rh3 {[%clk 0:00:17]} 55. Nd6+ {[%clk 0:00:24]}  Kf8 {[%clk 0:00:17]} 56. Kd2 {[%clk 0:00:21]}  Bg6 {[%clk 0:00:17]} 57. e6 {[%clk 0:00:19]}  a3 {[%clk 0:00:17]} 58. e7+ {[%clk 0:00:16]}  Kg8 {[%clk 0:00:17]} 59. e8=Q+ {[%clk 0:00:05]}  Bxe8 {[%clk 0:00:16]} 60. Nxe8 {[%clk 0:00:06]}  Rxe3 {[%clk 0:00:15]} 61. Kxe3 {[%clk 0:00:03]}  a2 {[%clk 0:00:15]} 62. Kf4 {[%clk 0:00:02]}  a1=Q {[%clk 0:00:14]} 63. Nd6 {[%clk 0:00:02]}  Qxf6+ {[%clk 0:00:13]} 64. Ke4 {[%clk 0:00:02]}  Qe6+ {[%clk 0:00:13]} 65. Kf4 {[%clk 0:00:03]}  Qd5 {[%clk 0:00:13]} 66. Nf5 {[%clk 0:00:02]}  Kf8 {[%clk 0:00:13]} 67. Ne3 {[%clk 0:00:02]}  Qd4+ {[%clk 0:00:12]} 68. Kf3 {[%clk 0:00:03]}  Qxb4 {[%clk 0:00:12]} 0-1


[Site "https://www.chess.com"]

[Event "Titled Tuesday Blitz February 07 Late 2023"]
[White "Reprintsev, Alexander"]
[Black "Schuster, Karsten"]
[WhiteFideId "14100541"]
[BlackFideId "4611071"]
[WhiteElo "2253"]
[BlackElo "2309"]
[Result "1-0"]
[Round "11"]
[TimeControl "180+2"]
[Date "2023.02.07"]
[WhiteClock "0:01:08"]
[BlackClock "0:00:44"]

1. e4 {[%clk 0:03:00]}  c6 {[%clk 0:02:56]} 2. Nc3 {[%clk 0:03:00]}  d5 {[%clk 0:02:57]} 3. Nf3 {[%clk 0:03:00]}  Bg4 {[%clk 0:02:56]} 4. h3 {[%clk 0:03:00]}  Bxf3 {[%clk 0:02:57]} 5. Qxf3 {[%clk 0:03:00]}  Nf6 {[%clk 0:02:57]} 6. e5 {[%clk 0:02:53]}  Nfd7 {[%clk 0:02:56]} 7. Qg3 {[%clk 0:02:53]}  e6 {[%clk 0:02:55]} 8. f4 {[%clk 0:02:53]}  g6 {[%clk 0:02:55]} 9. h4 {[%clk 0:02:53]}  h5 {[%clk 0:02:55]} 10. b3 {[%clk 0:02:53]}  c5 {[%clk 0:02:48]} 11. Bb2 {[%clk 0:02:53]}  Nc6 {[%clk 0:02:48]} 12. O-O-O {[%clk 0:02:53]}  Nd4 {[%clk 0:02:44]} 13. Bd3 {[%clk 0:02:45]}  Rg8 {[%clk 0:02:33]} 14. f5 {[%clk 0:02:37]}  exf5 {[%clk 0:02:13]} 15. Nxd5 {[%clk 0:02:33]}  Bg7 {[%clk 0:02:10]} 16. Bxd4 {[%clk 0:02:26]}  cxd4 {[%clk 0:02:10]} 17. e6 {[%clk 0:02:27]}  Ne5 {[%clk 0:02:06]} 18. exf7+ {[%clk 0:02:18]}  Kxf7 {[%clk 0:02:04]} 19. Nf4 {[%clk 0:02:12]}  Nxd3+ {[%clk 0:02:01]} 20. Nxd3 {[%clk 0:02:12]}  Qb8 {[%clk 0:01:50]} 21. Qf3 {[%clk 0:02:08]}  Re8 {[%clk 0:01:46]} 22. Qd5+ {[%clk 0:02:06]}  Kf8 {[%clk 0:01:46]} 23. Rde1 {[%clk 0:02:05]}  Qc7 {[%clk 0:01:43]} 24. Re6 {[%clk 0:02:00]}  Rxe6 {[%clk 0:01:42]} 25. Qxe6 {[%clk 0:02:00]}  Qf7 {[%clk 0:01:42]} 26. Qd6+ {[%clk 0:01:59]}  Kg8 {[%clk 0:01:42]} 27. Re1 {[%clk 0:01:56]}  Re8 {[%clk 0:01:41]} 28. Rxe8+ {[%clk 0:01:55]}  Qxe8 {[%clk 0:01:42]} 29. a4 {[%clk 0:01:43]}  Kh7 {[%clk 0:01:37]} 30. Kb2 {[%clk 0:01:41]}  Qe2 {[%clk 0:01:34]} 31. Qd5 {[%clk 0:01:40]}  Qxd2 {[%clk 0:01:30]} 32. Qxb7 {[%clk 0:01:39]}  Qc3+ {[%clk 0:01:28]} 33. Kb1 {[%clk 0:01:40]}  a5 {[%clk 0:01:27]} 34. Qf7 {[%clk 0:01:31]}  Qd2 {[%clk 0:01:25]} 35. g3 {[%clk 0:01:25]}  Qe3 {[%clk 0:01:22]} 36. Nf4 {[%clk 0:01:16]}  Qxg3 {[%clk 0:01:19]} 37. Ne6 {[%clk 0:01:16]}  Qe5 {[%clk 0:01:19]} 38. Ng5+ {[%clk 0:01:14]}  Kh6 {[%clk 0:01:17]} 39. Qg8 {[%clk 0:01:14]}  d3 {[%clk 0:00:44]} 40. Nf7# {[%clk 0:01:08]} 1-0


[Site "https://www.chess.com"]

[Event "Titled Tuesday Blitz February 07 Late 2023"]
[White "Gurevich, Ilya"]
[Black "Rottenwohrer Suarez, Juan"]
[WhiteFideId "2000628"]
[BlackFideId "32068182"]
[WhiteElo "2586"]
[BlackElo "2265"]
[Result "1/2-1/2"]
[Round "11"]
[TimeControl "180+2"]
[Date "2023.02.07"]
[WhiteClock "0:00:42"]
[BlackClock "0:00:20"]

1. d4 {[%clk 0:02:59]}  Nf6 {[%clk 0:02:59]} 2. c4 {[%clk 0:02:59]}  g6 {[%clk 0:02:59]} 3. Nc3 {[%clk 0:02:59]}  Bg7 {[%clk 0:03:00]} 4. e4 {[%clk 0:02:59]}  d6 {[%clk 0:03:00]} 5. f4 {[%clk 0:02:59]}  O-O {[%clk 0:02:57]} 6. Nf3 {[%clk 0:02:59]}  c5 {[%clk 0:02:58]} 7. d5 {[%clk 0:03:00]}  e6 {[%clk 0:02:58]} 8. Be2 {[%clk 0:03:00]}  exd5 {[%clk 0:02:58]} 9. cxd5 {[%clk 0:03:01]}  Re8 {[%clk 0:02:57]} 10. Nd2 {[%clk 0:03:01]}  b5 {[%clk 0:02:35]} 11. Bxb5 {[%clk 0:02:59]}  Nxe4 {[%clk 0:02:32]} 12. Ncxe4 {[%clk 0:02:47]}  Rxe4+ {[%clk 0:02:11]} 13. Nxe4 {[%clk 0:02:45]}  Qa5+ {[%clk 0:02:11]} 14. Nc3 {[%clk 0:02:26]}  Bxc3+ {[%clk 0:02:10]} 15. bxc3 {[%clk 0:02:27]}  Qxb5 {[%clk 0:02:09]} 16. Qe2 {[%clk 0:02:23]}  Qxe2+ {[%clk 0:02:03]} 17. Kxe2 {[%clk 0:02:21]}  Ba6+ {[%clk 0:02:04]} 18. Kf3 {[%clk 0:02:16]}  Nd7 {[%clk 0:02:01]} 19. Rd1 {[%clk 0:01:12]}  Nb6 {[%clk 0:02:01]} 20. f5 {[%clk 0:01:06]}  Bc4 {[%clk 0:01:58]} 21. Bf4 {[%clk 0:01:03]}  Rd8 {[%clk 0:01:50]} 22. Rd2 {[%clk 0:00:51]}  gxf5 {[%clk 0:01:32]} 23. Kg3 {[%clk 0:00:37]}  Nxd5 {[%clk 0:01:28]} 24. Rad1 {[%clk 0:00:33]}  Nxc3 {[%clk 0:01:20]} 25. Rxd6 {[%clk 0:00:30]}  Ne4+ {[%clk 0:01:20]} 26. Kf3 {[%clk 0:00:27]}  Nxd6 {[%clk 0:01:20]} 27. Rxd6 {[%clk 0:00:28]}  Rxd6 {[%clk 0:01:15]} 28. Bxd6 {[%clk 0:00:28]}  Bxa2 {[%clk 0:01:16]} 29. Bxc5 {[%clk 0:00:29]}  a5 {[%clk 0:01:16]} 30. Ke3 {[%clk 0:00:25]}  Kg7 {[%clk 0:01:09]} 31. Kd2 {[%clk 0:00:24]}  Kf6 {[%clk 0:01:08]} 32. g3 {[%clk 0:00:24]}  Ke5 {[%clk 0:01:03]} 33. Be3 {[%clk 0:00:24]}  Ke4 {[%clk 0:01:01]} 34. h4 {[%clk 0:00:21]}  a4 {[%clk 0:00:50]} 35. Bf4 {[%clk 0:00:21]}  Kd4 {[%clk 0:00:46]} 36. Kc2 {[%clk 0:00:20]}  Kc4 {[%clk 0:00:46]} 37. Kb2 {[%clk 0:00:20]}  Bb3 {[%clk 0:00:47]} 38. Ka1 {[%clk 0:00:21]}  Bd1 {[%clk 0:00:47]} 39. Bh6 {[%clk 0:00:21]}  Kd4 {[%clk 0:00:18]} 40. Bf4 {[%clk 0:00:22]}  Ke4 {[%clk 0:00:19]} 41. Bb8 {[%clk 0:00:21]}  Kf3 {[%clk 0:00:19]} 42. Bf4 {[%clk 0:00:22]}  Kg4 {[%clk 0:00:20]} 43. Bb8 {[%clk 0:00:22]}  h6 {[%clk 0:00:19]} 44. Bf4 {[%clk 0:00:23]}  Be2 {[%clk 0:00:17]} 45. Bb8 {[%clk 0:00:24]}  Bc4 {[%clk 0:00:17]} 46. Bf4 {[%clk 0:00:25]}  Bb3 {[%clk 0:00:17]} 47. Bb8 {[%clk 0:00:26]}  Be6 {[%clk 0:00:17]} 48. Bf4 {[%clk 0:00:27]}  Bd7 {[%clk 0:00:18]} 49. Bb8 {[%clk 0:00:28]}  Kf3 {[%clk 0:00:17]} 50. Bf4 {[%clk 0:00:29]}  h5 {[%clk 0:00:16]} 51. Bb8 {[%clk 0:00:30]}  Ke4 {[%clk 0:00:12]} 52. Bf4 {[%clk 0:00:30]}  Kd3 {[%clk 0:00:13]} 53. Bd6 {[%clk 0:00:31]}  Kc4 {[%clk 0:00:13]} 54. Bf4 {[%clk 0:00:31]}  Kd5 {[%clk 0:00:14]} 55. Bh6 {[%clk 0:00:32]}  Kc6 {[%clk 0:00:14]} 56. Bf4 {[%clk 0:00:33]}  Kb5 {[%clk 0:00:15]} 57. Bh6 {[%clk 0:00:33]}  Ka5 {[%clk 0:00:15]} 58. Bf4 {[%clk 0:00:34]}  Kb4 {[%clk 0:00:16]} 59. Bh6 {[%clk 0:00:34]}  Ka3 {[%clk 0:00:16]} 60. Bf4 {[%clk 0:00:35]}  Kb3 {[%clk 0:00:17]} 61. Bh6 {[%clk 0:00:36]}  Kc2 {[%clk 0:00:18]} 62. Bf4 {[%clk 0:00:37]}  Kd1 {[%clk 0:00:18]} 63. Bb8 {[%clk 0:00:38]}  Ke1 {[%clk 0:00:19]} 64. Bf4 {[%clk 0:00:39]}  Kf1 {[%clk 0:00:20]} 65. Bd6 {[%clk 0:00:39]}  Kg1 {[%clk 0:00:20]} 66. Bf4 {[%clk 0:00:40]}  Kh2 {[%clk 0:00:21]} 67. Bb8 {[%clk 0:00:41]}  Kh3 {[%clk 0:00:20]} 68. Bf4 {[%clk 0:00:42]}  Kg4 {[%clk 0:00:20]} 69. Bb8 {[%clk 0:00:42]} 1/2-1/2


[Site "https://www.chess.com"]

[Event "Titled Tuesday Blitz February 07 Late 2023"]
[White "Pinheiro, Iung Alicio de O."]
[Black "CheckBits"]
[WhiteFideId "2104350"]
[WhiteElo "2306"]
[BlackElo "2403"]
[Result "0-1"]
[Round "11"]
[TimeControl "180+2"]
[Date "2023.02.07"]
[WhiteClock "0:00:01"]
[BlackClock "0:00:11"]

1. e4 {[%clk 0:02:59]}  e5 {[%clk 0:02:58]} 2. Bc4 {[%clk 0:02:58]}  Nf6 {[%clk 0:02:57]} 3. d3 {[%clk 0:02:58]}  Bc5 {[%clk 0:02:57]} 4. Nc3 {[%clk 0:02:56]}  Nc6 {[%clk 0:02:55]} 5. f4 {[%clk 0:02:55]}  d6 {[%clk 0:02:55]} 6. Nf3 {[%clk 0:02:55]}  Bg4 {[%clk 0:02:54]} 7. h3 {[%clk 0:02:42]}  Bxf3 {[%clk 0:02:53]} 8. Qxf3 {[%clk 0:02:42]}  Nd4 {[%clk 0:02:52]} 9. Qg3 {[%clk 0:02:43]}  Nh5 {[%clk 0:02:33]} 10. Qg4 {[%clk 0:02:41]}  g6 {[%clk 0:02:31]} 11. fxe5 {[%clk 0:02:23]}  Nxc2+ {[%clk 0:02:25]} 12. Kd1 {[%clk 0:02:22]}  Nxa1 {[%clk 0:02:21]} 13. Rf1 {[%clk 0:02:21]}  O-O {[%clk 0:01:56]} 14. Bh6 {[%clk 0:02:09]}  Ng7 {[%clk 0:01:53]} 15. Nd5 {[%clk 0:01:58]}  b5 {[%clk 0:01:34]} 16. Nf6+ {[%clk 0:01:45]}  Kh8 {[%clk 0:01:35]} 17. Qh4 {[%clk 0:01:38]}  Nh5 {[%clk 0:01:13]} 18. Bg5 {[%clk 0:01:33]}  bxc4 {[%clk 0:01:00]} 19. Nxh5 {[%clk 0:01:23]}  Qe8 {[%clk 0:00:54]} 20. Bf6+ {[%clk 0:01:01]}  Kg8 {[%clk 0:00:54]} 21. Qg5 {[%clk 0:00:51]}  Qa4+ {[%clk 0:00:52]} 22. Ke2 {[%clk 0:00:16]}  Qc2+ {[%clk 0:00:38]} 23. Kf3 {[%clk 0:00:15]}  Qxd3+ {[%clk 0:00:37]} 24. Kg4 {[%clk 0:00:13]}  Qxf1 {[%clk 0:00:17]} 25. Qh6 {[%clk 0:00:07]}  Qd1+ {[%clk 0:00:16]} 26. Kg3 {[%clk 0:00:05]}  Qe1+ {[%clk 0:00:14]} 27. Kg4 {[%clk 0:00:03]}  Qe2+ {[%clk 0:00:13]} 28. Kg3 {[%clk 0:00:01]}  Qe3+ {[%clk 0:00:11]} 0-1


[Site "https://www.chess.com"]

[Event "Titled Tuesday Blitz February 07 Late 2023"]
[White "Seletsky, Grigory"]
[Black "Melikhov, Evgeny V."]
[WhiteFideId "14112191"]
[BlackFideId "4122046"]
[WhiteElo "2259"]
[BlackElo "2269"]
[Result "1-0"]
[Round "11"]
[TimeControl "180+2"]
[Date "2023.02.07"]
[WhiteClock "0:01:10"]
[BlackClock "0:00:23"]

1. e4 {[%clk 0:02:58]}  e5 {[%clk 0:02:59]} 2. Nf3 {[%clk 0:02:57]}  Nc6 {[%clk 0:02:59]} 3. Bc4 {[%clk 0:02:57]}  Nf6 {[%clk 0:02:59]} 4. d3 {[%clk 0:02:56]}  Be7 {[%clk 0:02:58]} 5. Nc3 {[%clk 0:02:55]}  d6 {[%clk 0:02:56]} 6. h3 {[%clk 0:02:55]}  O-O {[%clk 0:02:55]} 7. O-O {[%clk 0:02:53]}  Be6 {[%clk 0:02:54]} 8. Bb3 {[%clk 0:02:51]}  Nd4 {[%clk 0:02:45]} 9. Nxd4 {[%clk 0:02:50]}  exd4 {[%clk 0:02:46]} 10. Ne2 {[%clk 0:02:50]}  Bxb3 {[%clk 0:02:42]} 11. axb3 {[%clk 0:02:49]}  c5 {[%clk 0:02:42]} 12. f4 {[%clk 0:02:49]}  a5 {[%clk 0:02:31]} 13. g4 {[%clk 0:02:43]}  b6 {[%clk 0:02:27]} 14. Ng3 {[%clk 0:02:43]}  Nd7 {[%clk 0:02:23]} 15. g5 {[%clk 0:02:42]}  g6 {[%clk 0:01:59]} 16. h4 {[%clk 0:02:39]}  f5 {[%clk 0:01:40]} 17. exf5 {[%clk 0:02:33]}  gxf5 {[%clk 0:01:40]} 18. Qf3 {[%clk 0:02:31]}  Qe8 {[%clk 0:01:30]} 19. Bd2 {[%clk 0:02:28]}  Qf7 {[%clk 0:01:29]} 20. h5 {[%clk 0:02:26]}  Kh8 {[%clk 0:01:22]} 21. Rfe1 {[%clk 0:02:21]}  Rfe8 {[%clk 0:01:18]} 22. Re2 {[%clk 0:02:20]}  Bf8 {[%clk 0:01:17]} 23. Rae1 {[%clk 0:02:20]}  Rxe2 {[%clk 0:01:16]} 24. Rxe2 {[%clk 0:02:19]}  Rc8 {[%clk 0:01:06]} 25. Qb7 {[%clk 0:02:16]}  Re8 {[%clk 0:01:02]} 26. Rxe8 {[%clk 0:02:06]}  Qxe8 {[%clk 0:01:02]} 27. Kf2 {[%clk 0:02:02]}  Qe6 {[%clk 0:00:57]} 28. Qc8 {[%clk 0:01:49]}  Kg7 {[%clk 0:00:55]} 29. c4 {[%clk 0:01:32]}  Kf7 {[%clk 0:00:46]} 30. Qc6 {[%clk 0:01:30]}  Be7 {[%clk 0:00:38]} 31. Qh1 {[%clk 0:01:27]}  Ke8 {[%clk 0:00:37]} 32. Qh3 {[%clk 0:01:26]}  Kf7 {[%clk 0:00:30]} 33. Qxf5+ {[%clk 0:01:25]}  Qxf5 {[%clk 0:00:30]} 34. Nxf5 {[%clk 0:01:25]}  Ke6 {[%clk 0:00:31]} 35. Nxe7 {[%clk 0:01:22]}  Kxe7 {[%clk 0:00:31]} 36. Kf3 {[%clk 0:01:22]}  Kf7 {[%clk 0:00:28]} 37. Ke4 {[%clk 0:01:23]}  Nf8 {[%clk 0:00:26]} 38. f5 {[%clk 0:01:20]}  h6 {[%clk 0:00:24]} 39. g6+ {[%clk 0:01:17]}  Kg7 {[%clk 0:00:24]} 40. Kd5 {[%clk 0:01:15]}  Nd7 {[%clk 0:00:23]} 41. Ke6 {[%clk 0:01:11]}  Nf6 {[%clk 0:00:23]} 42. Bxh6+ {[%clk 0:01:10]} 1-0


[Site "https://www.chess.com"]